lending/lending_fUSD_20250508
["ID","MTS","AMOUNT","RATE_DAILY","PERIOD"]
[360256338,1746667843808,-187.06263958,0.00019996,2]
[360256339,1746667843818,-450.0,0.00019996,2]
[360256340,1746667843827,-450.0,0.00019996,2]
[360256341,1746667843837,-450.0,0.00019996,2]
[360256342,1746667843846,-450.0,0.00019996,2]
[360256343,1746667843855,-450.0,0.00019996,2]
[360256344,1746667843864,-391.30209368,0.00019996,2]
[360256345,1746667843874,-1032.98,0.00019996,2]
[360256346,1746667843883,-428.47688154,0.00019996,2]
[360256347,1746667843892,-450.0,0.00019996,2]
[360256348,1746667843902,-943.6,0.00019996,2]
[360256349,1746667843911,-1299.22,0.00019996,2]
[360256350,1746667843920,-450.0,0.00019996,2]
[360256351,1746667843929,-450.0,0.00019996,2]
[360256352,1746667843939,-450.0,0.00019996,2]
[360256353,1746667843948,-497.30748789,0.00019996,2]
[360256354,1746667843958,-450.0,0.00019996,2]
[360256355,1746667843967,-450.0,0.00019996,2]
[360256356,1746667843976,-450.0,0.00019996,2]
[360256357,1746667843986,-450.0,0.00019996,2]
[360256358,1746667843995,-1477.84,0.00019996,2]
[360256359,1746667844005,-450.0,0.00019996,2]
[360256360,1746667844015,-450.0,0.00019996,2]
[360256361,1746667844024,-450.0,0.00019996,2]
[360256362,1746667844033,-676.43,0.00019996,2]
[360256363,1746667844043,-450.0,0.00019996,2]
[360256364,1746667844052,-450.0,0.00019996,2]
[360256365,1746667844062,-450.0,0.00019996,2]
[360256366,1746667844071,-450.0,0.00019996,2]
[360256367,1746667844081,-450.0,0.00019996,2]
[360256368,1746667844090,-464.43982478,0.00019996,2]
[360256369,1746667844099,-450.0,0.00019996,2]
[360256370,1746667844108,-162.78402606,0.00019996,2]
[360256371,1746667844117,-450.0,0.00019996,2]
[360256372,1746667844127,-450.0,0.00019996,2]
[360256373,1746667844136,-2000.0,0.00019996,2]
[360256374,1746667844145,-450.0,0.00019996,2]
[360256375,1746667844154,-450.0,0.00019996,2]
[360256376,1746667844164,-450.0,0.00019996,2]
[360256377,1746667844174,-450.0,0.00019996,2]
[360256378,1746667844187,-594.19625377,0.00019996,2]
[360256379,1746667844196,-729.52,0.00019996,2]
[360256380,1746667844206,-450.0,0.00019996,2]
[360256381,1746667844216,-576.56918927,0.00019996,2]
[360256382,1746667844225,-244.68141655,0.00019996,2]
[360256383,1746667844235,-476.94601029,0.00019996,2]
[360256384,1746667844245,-450.0,0.00019996,2]
[360256385,1746667844259,-507.97,0.00019996,2]
[360256386,1746667844270,-7092.67,0.00019996,2]
[360256387,1746667844279,-450.0,0.00019996,2]
[360256388,1746667844290,-450.0,0.00019996,2]
[360256389,1746667844299,-450.0,0.00019996,2]
[360256390,1746667844309,-458.05,0.00019996,2]
[360256391,1746667844319,-450.0,0.00019996,2]
[360256392,1746667844329,-450.0,0.00019996,2]
[360256393,1746667844338,-599.760351,0.00019996,2]
[360256394,1746667844348,-450.0,0.00019996,2]
[360256395,1746667844357,-450.0,0.00019996,2]
[360256396,1746667844368,-450.0,0.00019997,2]
[360256397,1746667844377,-450.0,0.00019997,2]
[360256398,1746667844387,-483.92544166,0.00019997,2]
[360256399,1746667844397,-450.0,0.00019997,2]
[360256400,1746667844407,-450.0,0.00019997,2]
[360256401,1746667844418,-450.0,0.00019997,2]
[360256402,1746667844427,-450.0,0.00019997,2]
[360256403,1746667844437,-517.66312193,0.00019997,2]
[360256404,1746667844446,-450.0,0.00019997,2]
[360256405,1746667844456,-473.27100035,0.00019997,2]
[360256406,1746667844466,-250.0,0.00019997,2]
[360256407,1746667844476,-450.0,0.00019997,2]
[360256408,1746667844485,-467.5459469,0.00019997,2]
[360256409,1746667844495,-486.08298204,0.00019997,2]
[360256410,1746667844504,-450.0,0.00019997,2]
[360256411,1746667844514,-450.0,0.00019997,2]
[360256412,1746667844523,-350.22330316,0.00019997,2]
[360256413,1746667844533,-538.23535689,0.00019997,2]
[360256414,1746667844543,-489.47490829,0.00019997,2]
[360256415,1746667844552,-482.49730075,0.00019997,2]
[360256416,1746667844565,-212.95552508,0.00019997,2]
[360256417,1746667844575,-170.79807682,0.00019997,2]
[360256418,1746667844585,-486.41937698,0.00019997,2]
[360256419,1746667844594,-450.0,0.00019997,2]
[360256420,1746667844604,-450.0,0.00019997,2]
[360256421,1746667844615,-157.2492687,0.00019997,2]
[360256422,1746667844625,-500.0,0.00019997,2]
[360256423,1746667844634,-500.0,0.00019997,2]
[360256424,1746667844645,-500.0,0.00019997,2]
[360256425,1746667844655,-645.26466724,0.00019997,2]
[360256426,1746667844664,-585.80227427,0.00019997,2]
[360256427,1746667844674,-450.0,0.00019997,2]
[360256428,1746667844683,-450.0,0.00019997,2]
[360256429,1746667844692,-450.0,0.00019997,2]
[360256430,1746667844702,-450.0,0.00019997,2]
[360256431,1746667844711,-532.87938476,0.00019997,2]
[360256432,1746667844720,-467.54644824,0.00019997,2]
[360256433,1746667844730,-450.0,0.00019997,2]
[360256434,1746667844739,-483.23289264,0.00019997,2]
[360256435,1746667844749,-450.0,0.00019997,2]
[360256436,1746667844759,-588.27679667,0.00019997,2]
[360256437,1746667844768,-522.19051959,0.00019997,2]
[360256438,1746667844777,-450.0,0.00019997,2]
[360256439,1746667844787,-450.0,0.00019997,2]
[360256440,1746667844797,-457.83388826,0.00019997,2]
[360256441,1746667844806,-544.52265287,0.00019997,2]
[360256442,1746667844816,-450.0,0.00019997,2]
[360256443,1746667844825,-536.42003852,0.00019997,2]
[360256444,1746667844835,-465.35101957,0.00019997,2]
[360256445,1746667844844,-232.88394307,0.00019997,2]
[360256446,1746667844853,-450.0,0.00019997,2]
[360256447,1746667844863,-500.93681621,0.00019997,2]
[360256448,1746667844872,-475.58239405,0.00019997,2]
[360256449,1746667844881,-500.0,0.00019997,2]
[360256450,1746667844890,-221.67472827,0.00019997,2]
[360256451,1746667844900,-450.0,0.00019997,2]
[360256452,1746667844909,-450.0,0.00019997,2]
[360256453,1746667844919,-450.0,0.00019997,2]
[360256454,1746667844929,-450.0,0.00019997,2]
[360256455,1746667844938,-450.0,0.00019997,2]
[360256456,1746667844948,-500.0,0.00019997,2]
[360256457,1746667844958,-428.04783105,0.00019997,2]
[360256458,1746667844967,-464.09438568,0.00019997,2]
[360256459,1746667844977,-478.16533058,0.00019997,2]
[360256460,1746667844987,-464.78186667,0.00019997,2]
[360256461,1746667844996,-300.0,0.00019997,2]
[360256462,1746667845006,-450.0,0.00019997,2]
[360256463,1746667845015,-450.0,0.00019997,2]
[360256464,1746667845027,-479.49482604,0.00019997,2]
[360256465,1746667845036,-482.97741878,0.00019997,2]
[360256466,1746667845045,-450.0,0.00019997,2]
[360256467,1746667845055,-506.65422478,0.00019997,2]
[360256468,1746667845065,-470.76211115,0.00019997,2]
[360256469,1746667845075,-450.0,0.00019997,2]
[360256470,1746667845085,-513.6228209,0.00019997,2]
[360256471,1746667845273,-450.0,0.00019997,2]
[360256472,1746667845283,-450.0,0.00019997,2]
[360256473,1746667845293,-450.0,0.00019997,2]
[360256474,1746667845302,-450.0,0.00019997,2]
[360256475,1746667845312,-229.13800937,0.00019997,2]
[360256476,1746667845321,-465.27721902,0.00019997,2]
[360256477,1746667845331,-500.0,0.00019997,2]
[360256478,1746667845340,-450.07233365,0.00019997,2]
[360256479,1746667845350,-455.88611133,0.00019997,2]
[360256480,1746667845359,-450.0,0.00019997,2]
[360256481,1746667845368,-450.0,0.00019997,2]
[360256482,1746667845378,-456.44166274,0.00019997,2]
[360256483,1746667845389,-450.0,0.00019997,2]
[360256484,1746667845399,-450.0,0.00019997,2]
[360256485,1746667845409,-450.0,0.00019997,2]
[360256486,1746667845422,-450.0,0.00019997,2]
[360256487,1746667845432,-450.0,0.00019997,2]
[360256488,1746667845442,-471.04413946,0.00019997,2]
[360256489,1746667845452,-450.0,0.00019997,2]
[360256490,1746667845461,-450.0,0.00019997,2]
[360256491,1746667845471,-450.0,0.00019997,2]
[360256492,1746667845481,-450.0,0.00019997,2]
[360256493,1746667845491,-500.0,0.00019997,2]
[360256494,1746667845502,-450.0,0.00019997,2]
[360256495,1746667845511,-450.0,0.00019997,2]
[360256496,1746667845521,-450.0,0.00019997,2]
[360256497,1746667845531,-450.0,0.00019997,2]
[360256498,1746667845541,-584.24403105,0.00019997,2]
[360256499,1746667845551,-450.0,0.00019997,2]
[360256500,1746667845563,-450.0,0.00019997,2]
[360256501,1746667845573,-450.0,0.00019997,2]
[360256502,1746667845582,-450.0,0.00019997,2]
[360256503,1746667845592,-450.0,0.00019997,2]
[360256504,1746667845605,-193.9736146,0.00019997,2]
[360256505,1746667845615,-296.4196941,0.00019997,2]
[360256506,1746667845625,-581.96408841,0.00019997,2]
[360256507,1746667845636,-474.63029224,0.00019997,2]
[360256508,1746667845647,-450.0,0.00019997,2]
[360256509,1746667845657,-450.0,0.00019997,2]
[360256510,1746667845666,-450.0,0.00019997,2]
[360256511,1746667845677,-450.0,0.00019997,2]
[360256513,1746667845686,-450.0,0.00019997,2]
[360256514,1746667845696,-450.0,0.00019997,2]
[360256516,1746667845707,-450.0,0.00019997,2]
[360256517,1746667845717,-472.3201689,0.00019997,2]
[360256518,1746667845727,-450.0,0.00019997,2]
[360256519,1746667845750,-450.0,0.00019997,2]
[360256520,1746667845762,-450.0,0.00019997,2]
[360256521,1746667845773,-450.0,0.00019997,2]
[360256522,1746667845784,-450.0,0.00019997,2]
[360256523,1746667845795,-450.0,0.00019997,2]
[360256524,1746667845807,-450.0,0.00019997,2]
[360256525,1746667845818,-450.0,0.00019997,2]
[360256526,1746667845829,-450.0,0.00019997,2]
[360256527,1746667845843,-450.0,0.00019997,2]
[360256528,1746667845855,-549.24911529,0.00019997,2]
[360256529,1746667845866,-450.0,0.00019997,2]
[360256530,1746667845876,-453.15714518,0.00019997,2]
[360256531,1746667845886,-450.0,0.00019997,2]
[360256532,1746667845897,-450.0,0.00019997,2]
[360256533,1746667845908,-450.0,0.00019997,2]
[360256534,1746667845918,-450.0,0.00019997,2]
[360256535,1746667845928,-450.0,0.00019997,2]
[360256536,1746667845938,-450.0,0.00019997,2]
[360256537,1746667845948,-464.50087288,0.00019997,2]
[360256538,1746667845958,-450.0,0.00019997,2]
[360256539,1746667845968,-454.68554839,0.00019997,2]
[360256540,1746667845978,-479.17119916,0.00019997,2]
[360256541,1746667845989,-450.0,0.00019997,2]
[360256542,1746667845999,-479.91821918,0.00019997,2]
[360256543,1746667846009,-450.0,0.00019997,2]
[360256544,1746667846020,-479.78799067,0.00019997,2]
[360256545,1746667846030,-450.0,0.00019997,2]
[360256546,1746667846040,-490.59326727,0.00019997,2]
[360256547,1746667846051,-450.0,0.00019997,2]
[360256548,1746667846062,-463.2296619,0.00019997,2]
[360256549,1746667846072,-450.0,0.00019997,2]
[360256550,1746667846082,-450.0,0.00019997,2]
[360256551,1746667846093,-450.0,0.00019997,2]
[360256552,1746667846103,-450.0,0.00019997,2]
[360256553,1746667846113,-463.0236071,0.00019997,2]
[360256554,1746667846123,-450.0,0.00019997,2]
[360256555,1746667846132,-450.0,0.00019997,2]
[360256556,1746667846143,-460.4588323,0.00019997,2]
[360256557,1746667846153,-450.0,0.00019997,2]
[360256558,1746667846163,-450.0,0.00019997,2]
[360256559,1746667846178,-450.0,0.00019997,2]
[360256560,1746667846188,-450.0,0.00019997,2]
[360256561,1746667846199,-450.0,0.00019997,2]
[360256562,1746667846210,-450.0,0.00019997,2]
[360256563,1746667846222,-182.01329362,0.00019997,2]
[360256564,1746667846232,-476.64034562,0.00019997,2]
[360256565,1746667846242,-468.61006372,0.00019997,2]
[360256566,1746667846253,-450.0,0.00019997,2]
[360256567,1746667846263,-473.8258779,0.00019997,2]
[360256568,1746667846274,-520.86205456,0.00019997,2]
[360256569,1746667846284,-495.09706035,0.00019997,2]
[360256570,1746667846295,-450.0,0.00019997,2]
[360256571,1746667846306,-450.0,0.00019997,2]
[360256572,1746667846316,-450.0,0.00019997,2]
[360256573,1746667846327,-464.48237236,0.00019997,2]
[360256574,1746667846337,-450.0,0.00019997,2]
[360256575,1746667846347,-450.0,0.00019997,2]
[360256576,1746667846358,-450.0,0.00019997,2]
[360256577,1746667846368,-489.92176097,0.00019997,2]
[360256578,1746667846379,-450.0,0.00019997,2]
[360256579,1746667846389,-450.0,0.00019997,2]
[360256580,1746667846399,-450.0,0.00019997,2]
[360256581,1746667846410,-450.0,0.00019997,2]
[360256582,1746667846420,-450.0,0.00019997,2]
[360256583,1746667846431,-450.0,0.00019997,2]
[360256584,1746667846443,-470.37128244,0.00019997,2]
[360256585,1746667846454,-450.0,0.00019997,2]
[360256586,1746667846464,-469.93750943,0.00019997,2]
[360256587,1746667846475,-450.0,0.00019997,2]
[360256588,1746667846486,-450.0,0.00019997,2]
[360256589,1746667846496,-500.0,0.00019997,2]
[360256590,1746667846507,-450.0,0.00019997,2]
[360256591,1746667846517,-474.3671828,0.00019997,2]
[360256592,1746667846528,-457.9008804,0.00019997,2]
[360256593,1746667846538,-459.61030843,0.00019997,2]
[360256594,1746667846550,-450.0,0.00019997,2]
[360256595,1746667846562,-479.45391562,0.00019997,2]
[360256596,1746667846574,-450.0,0.00019997,2]
[360256597,1746667846584,-450.0,0.00019997,2]
[360256598,1746667846595,-470.0,0.00019997,2]
[360256599,1746667846606,-450.0,0.00019997,2]
[360256600,1746667846620,-450.0,0.00019997,2]
[360256601,1746667846631,-450.0,0.00019997,2]
[360256602,1746667846642,-173.57166656,0.00019997,2]
[360256603,1746667846652,-483.18706019,0.00019997,2]
[360256604,1746667846662,-450.0,0.00019997,2]
[360256605,1746667846673,-450.0,0.00019997,2]
[360256606,1746667846684,-450.0,0.00019997,2]
[360256607,1746667846694,-450.0,0.00019997,2]
[360256608,1746667846705,-249.52730605,0.00019997,2]
[360256609,1746667846718,-450.0,0.00019997,2]
[360256610,1746667846729,-450.0,0.00019997,2]
[360256611,1746667846740,-450.0,0.00019997,2]
[360256612,1746667846750,-450.0,0.00019997,2]
[360256613,1746667846760,-182.63102817,0.00019997,2]
[360256614,1746667846771,-450.0,0.00019997,2]
[360256615,1746667846782,-450.0,0.00019997,2]
[360256616,1746667846793,-463.57399547,0.00019997,2]
[360256617,1746667846805,-450.0,0.00019997,2]
[360256618,1746667846815,-515.87102938,0.00019997,2]
[360256619,1746667846825,-470.31,0.00019997,2]
[360256620,1746667846835,-450.0,0.00019997,2]
[360256621,1746667846847,-450.0,0.00019997,2]
[360256622,1746667846857,-450.0,0.00019997,2]
[360256623,1746667846867,-450.0,0.00019997,2]
[360256624,1746667846879,-450.0,0.00019997,2]
[360256625,1746667846889,-482.98353313,0.00019997,2]
[360256626,1746667846900,-450.0,0.00019997,2]
[360256627,1746667846910,-450.0,0.00019997,2]
[360256628,1746667846921,-759.04,0.00019997,2]
[360256629,1746667846932,-510.46,0.00019997,2]
[360256630,1746667846943,-450.0,0.00019997,2]
[360256631,1746667846954,-450.0,0.00019997,2]
[360256632,1746667846964,-7477.37373894,0.00019997,2]
[360256633,1746667847234,-3456.12626106,0.00019997,2]
[360256634,1746667847244,-450.0,0.00019997,2]
[360256635,1746667847254,-450.0,0.00019997,2]
[360256636,1746667847265,-450.0,0.00019997,2]
[360256637,1746667847275,-450.0,0.00019997,2]
[360256638,1746667847286,-450.0,0.00019997,2]
[360256639,1746667847297,-450.0,0.00019997,2]
[360256640,1746667847306,-450.0,0.00019997,2]
[360256641,1746667847315,-450.0,0.00019997,2]
[360256642,1746667847327,-450.0,0.00019997,2]
[360256643,1746667847337,-450.0,0.00019997,2]
[360256644,1746667847347,-450.0,0.00019997,2]
[360256645,1746667847357,-450.0,0.00019997,2]
[360256646,1746667847367,-450.0,0.00019997,2]
[360256647,1746667847376,-451.83038144,0.00019997,2]
[360256648,1746667847388,-505.06377356,0.00019997,2]
[360256649,1746667847400,-450.0,0.00019997,2]
[360256650,1746667847410,-528.9050402,0.00019997,2]
[360256651,1746667847420,-450.0,0.00019997,2]
[360256652,1746667847429,-450.0,0.00019997,2]
[360256653,1746667847439,-450.0,0.00019997,2]
[360256654,1746667847449,-482.05868116,0.00019997,2]
[360256655,1746667847458,-450.0,0.00019997,2]
[360256656,1746667847470,-450.0,0.00019997,2]
[360256657,1746667847481,-450.0,0.00019997,2]
[360256658,1746667847491,-450.0,0.00019997,2]
[360256659,1746667847500,-450.0,0.00019997,2]
[360256660,1746667847510,-450.0,0.00019997,2]
[360256661,1746667847520,-450.0,0.00019997,2]
[360256662,1746667847530,-450.0,0.00019997,2]
[360256663,1746667847540,-450.0,0.00019997,2]
[360256664,1746667847551,-524.66068509,0.00019997,2]
[360256665,1746667847564,-450.0,0.00019997,2]
[360256666,1746667847574,-500.0,0.00019997,2]
[360256667,1746667847584,-450.0,0.00019997,2]
[360256668,1746667847593,-450.0,0.00019997,2]
[360256669,1746667847603,-500.99371953,0.00019997,2]
[360256670,1746667847613,-450.0,0.00019997,2]
[360256671,1746667847623,-185.06303586,0.00019997,2]
[360256672,1746667847633,-450.0,0.00019997,2]
[360256673,1746667847643,-450.0,0.00019997,2]
[360256674,1746667847653,-450.0,0.00019997,2]
[360256675,1746667847663,-450.0,0.00019997,2]
[360256676,1746667847674,-239.67983449,0.00019997,2]
[360256677,1746667847687,-13.00653021,0.00019997,2]
[360256678,1746667847697,-250.23948996,0.00019997,2]
[360256679,1746667847707,-450.0,0.00019997,2]
[360256680,1746667847717,-450.0,0.00019997,2]
[360256681,1746667847728,-450.0,0.00019997,2]
[360256682,1746667847738,-450.0,0.00019997,2]
[360256683,1746667847810,-450.0,0.00019997,2]
[360256684,1746667847820,-794.12,0.00019997,2]
[360256685,1746667847829,-450.0,0.00019997,2]
[360256686,1746667847839,-450.0,0.00019997,2]
[360256687,1746667847848,-450.0,0.00019997,2]
[360256688,1746667847858,-450.0,0.00019997,2]
[360256689,1746667847867,-450.0,0.00019997,2]
[360256690,1746667847877,-287.1709253,0.00019997,2]
[360256691,1746667847887,-450.0,0.00019997,2]
[360256692,1746667847896,-450.0,0.00019997,2]
[360256693,1746667847905,-450.0,0.00019997,2]
[360256694,1746667847915,-450.0,0.00019997,2]
[360256695,1746667847924,-450.0,0.00019997,2]
[360256696,1746667847934,-450.0,0.00019997,2]
[360256697,1746667847943,-450.0,0.00019997,2]
[360256698,1746667847962,-450.0,0.00019997,2]
[360256699,1746667847975,-450.0,0.00019997,2]
[360256700,1746667847984,-450.0,0.00019997,2]
[360256701,1746667847994,-450.0,0.00019997,2]
[360256702,1746667848004,-450.0,0.00019997,2]
[360256703,1746667848015,-450.0,0.00019997,2]
[360256704,1746667848025,-565.30983861,0.00019997,2]
[360256705,1746667848035,-450.0,0.00019997,2]
[360256706,1746667848046,-450.0,0.00019997,2]
[360256707,1746667848055,-450.0,0.00019997,2]
[360256708,1746667848067,-450.0,0.00019997,2]
[360256709,1746667848077,-633.76,0.00019997,2]
[360256710,1746667848087,-450.0,0.00019997,2]
[360256711,1746667848097,-450.0,0.00019997,2]
[360256712,1746667848107,-580.45792051,0.00019997,2]
[360256713,1746667848118,-450.0,0.00019997,2]
[360256714,1746667848128,-450.0,0.00019997,2]
[360256715,1746667848137,-450.0,0.00019997,2]
[360256716,1746667848147,-450.0,0.00019997,2]
[360256717,1746667848158,-450.0,0.00019997,2]
[360256718,1746667848168,-468.95177208,0.00019997,2]
[360256719,1746667848178,-450.0,0.00019997,2]
[360256720,1746667848188,-500.0,0.00019997,2]
[360256721,1746667848198,-454.91948475,0.00019997,2]
[360256722,1746667848208,-695.29,0.00019997,2]
[360256723,1746667848218,-450.0,0.00019997,2]
[360256724,1746667848228,-195.39320509,0.00019997,2]
[360256725,1746667848238,-450.0,0.00019997,2]
[360256726,1746667848249,-189.02483914,0.00019997,2]
[360256727,1746667848259,-450.0,0.00019997,2]
[360256728,1746667848270,-450.0,0.00019997,2]
[360256729,1746667848280,-450.0,0.00019997,2]
[360256730,1746667848290,-275.25341291,0.00019997,2]
[360256731,1746667848312,-174.74658709,0.00019997,2]
[360256732,1746667848323,-450.0,0.00019997,2]
[360256733,1746667848333,-450.0,0.00019997,2]
[360256734,1746667848343,-450.0,0.00019997,2]
[360256735,1746667848353,-450.0,0.00019997,2]
[360256736,1746667848364,-450.0,0.00019997,2]
[360256737,1746667848374,-182.60332697,0.00019997,2]
[360256738,1746667848384,-453.43283087,0.00019997,2]
[360256739,1746667848399,-450.0,0.00019997,2]
[360256740,1746667848410,-450.0,0.00019997,2]
[360256741,1746667848419,-1032.98,0.00019997,2]
[360256742,1746667848430,-450.0,0.00019997,2]
[360256743,1746667848440,-502.63670725,0.00019997,2]
[360256744,1746667848450,-455.43019022,0.00019997,2]
[360256745,1746667848460,-943.6,0.00019997,2]
[360256746,1746667848471,-450.0,0.00019997,2]
[360256747,1746667848481,-450.0,0.00019997,2]
[360256748,1746667848491,-450.0,0.00019997,2]
[360256749,1746667848501,-1299.22,0.00019997,2]
[360256750,1746667848511,-450.0,0.00019997,2]
[360256751,1746667848520,-450.0,0.00019997,2]
[360256752,1746667848530,-450.0,0.00019997,2]
[360256753,1746667848540,-450.0,0.00019997,2]
[360256754,1746667848551,-305.43539089,0.00019997,2]
[360256755,1746667848563,-450.0,0.00019997,2]
[360256756,1746667848575,-450.0,0.00019997,2]
[360256757,1746667848585,-450.0,0.00019997,2]
[360256758,1746667848595,-450.0,0.00019997,2]
[360256759,1746667848605,-450.0,0.00019997,2]
[360256760,1746667848617,-450.0,0.00019997,2]
[360256761,1746667848627,-450.0,0.00019997,2]
[360256762,1746667848638,-450.0,0.00019997,2]
[360256763,1746667848649,-450.0,0.00019997,2]
[360256764,1746667848660,-450.0,0.00019997,2]
[360256765,1746667848670,-450.0,0.00019997,2]
[360256766,1746667848680,-450.0,0.00019997,2]
[360256767,1746667848690,-450.0,0.00019997,2]
[360256768,1746667848699,-450.0,0.00019997,2]
[360256769,1746667848709,-50.80854618,0.00019997,2]
[360256770,1746667848736,-399.19145382,0.00019997,2]
[360256771,1746667848745,-125.15051441,0.00019997,2]
[360256772,1746667848779,-1339.81986201,0.00019997,2]
[360256773,1746667848791,-12.86962358,0.00019997,2]
[360256774,1746667848801,-450.0,0.00019997,2]
[360256775,1746667848811,-506.08752774,0.00019997,2]
[360256776,1746667848822,-450.0,0.00019997,2]
[360256777,1746667848832,-461.13413652,0.00019997,2]
[360256778,1746667848842,-450.0,0.00019997,2]
[360256779,1746667848852,-450.0,0.00019997,2]
[360256780,1746667848863,-676.43,0.00019997,2]
[360256781,1746667848873,-450.0,0.00019997,2]
[360256782,1746667848883,-450.0,0.00019997,2]
[360256783,1746667848893,-517.68940036,0.00019997,2]
[360256784,1746667848903,-450.0,0.00019997,2]
[360256785,1746667848913,-450.0,0.00019997,2]
[360256786,1746667848924,-522.57426506,0.00019997,2]
[360256787,1746667848934,-450.0,0.00019997,2]
[360256788,1746667848944,-450.0,0.00019997,2]
[360256789,1746667848954,-450.0,0.00019997,2]
[360256790,1746667848963,-450.0,0.00019997,2]
[360256791,1746667848974,-503.16891568,0.00019997,2]
[360256792,1746667848984,-450.0,0.00019997,2]
[360256793,1746667848994,-450.0,0.00019997,2]
[360256794,1746667849004,-485.94983817,0.00019997,2]
[360256795,1746667849014,-356.95490116,0.00019997,2]
[360256796,1746667849026,-93.04509884,0.00019997,2]
[360256797,1746667849036,-450.0,0.00019997,2]
[360256798,1746667849047,-450.0,0.00019997,2]
[360256799,1746667849057,-450.0,0.00019997,2]
[360256800,1746667849068,-481.19058826,0.00019997,2]
[360256801,1746667849077,-450.0,0.00019997,2]
[360256802,1746667849087,-450.0,0.00019997,2]
[360256803,1746667849097,-450.0,0.00019997,2]
[360256804,1746667849107,-2031.26730325,0.00019997,2]
[360256805,1746667849116,-450.0,0.00019997,2]
[360256806,1746667849126,-450.0,0.00019997,2]
[360256807,1746667849136,-209.3113069,0.00019997,2]
[360256808,1746667849145,-450.0,0.00019997,2]
[360256809,1746667849156,-450.0,0.00019997,2]
[360256810,1746667849166,-582.6046102,0.00019997,2]
[360256811,1746667849177,-450.0,0.00019997,2]
[360256812,1746667849187,-501.88736561,0.00019997,2]
[360256813,1746667849199,-555.96,0.00019997,2]
[360256814,1746667849209,-729.52,0.00019997,2]
[360256815,1746667849220,-555.96,0.00019997,2]
[360256816,1746667849231,-513.38273676,0.00019997,2]
[360256817,1746667849242,-536.50401821,0.00019997,2]
[360256818,1746667849252,-484.75016231,0.00019997,2]
[360256819,1746667849263,-450.0,0.00019997,2]
[360256820,1746667849274,-450.0,0.00019997,2]
[360256821,1746667849284,-471.16614525,0.00019997,2]
[360256822,1746667849295,-450.0,0.00019997,2]
[360256823,1746667849306,-450.0,0.00019997,2]
[360256824,1746667849317,-450.0,0.00019997,2]
[360256825,1746667849329,-450.0,0.00019997,2]
[360256826,1746667849340,-450.0,0.00019997,2]
[360256827,1746667849351,-502.16027518,0.00019997,2]
[360256828,1746667849362,-578.2069464,0.00019997,2]
[360256829,1746667849373,-507.97,0.00019997,2]
[360256830,1746667849383,-7092.67,0.00019997,2]
[360256831,1746667849394,-496.88096959,0.00019997,2]
[360256832,1746667849404,-450.0,0.00019997,2]
[360256833,1746667849414,-598.1972538,0.00019997,2]
[360256834,1746667849425,-458.05,0.00019997,2]
[360256835,1746667849435,-450.0,0.00019997,2]
[360256836,1746667849447,-330.07196013,0.00019997,2]
[360256837,1746667849457,-544.49537627,0.00019997,2]
[360256838,1746667849472,-450.0,0.00019997,2]
[360256839,1746667849482,-450.0,0.00019997,2]